bitfinex-derivatives/quotes_BNBF0:USTF0_20230901
["timestamp","ask_amount","ask_price","bid_price","bid_amount"]
[1693584147969,0.17230956,213.57,213.09,0.86201133]
[1693584148268,0.17230956,213.56,213.1,0.86201133]
[1693584148468,0.17230956,213.59,213.07,0.86201133]
[1693584148669,0.17230956,213.58,213.08,0.86200795]
[1693584148870,0.17230956,213.57,213.09,0.86200795]
[1693584149171,0.17230956,213.56,213.1,0.86200795]
[1693584149375,0.17230956,213.55,213.06,0.0768926]
[1693584149571,0.17230956,213.54,213.07,0.86201645]
[1693584149770,0.17230956,213.58,213.07,0.86201645]
[1693584149972,0.17230956,213.57,213.07,0.86201645]
[1693584150171,0.17230956,213.56,213.07,0.86201645]
[1693584150474,0.17230956,213.55,213.07,0.86201645]
[1693584150773,0.17230956,213.54,213.07,0.86201645]
[1693584150969,0.17230956,213.58,213.07,0.86201645]
[1693584151165,0.17230956,213.57,213.07,0.86201645]
[1693584151366,0.17230956,213.56,213.07,0.86201645]
[1693584151565,0.17230956,213.55,213.07,0.86201645]
[1693584151771,5.1230289,213.59,213.07,0.86201645]
[1693584151772,0.17230956,213.58,213.07,0.86201645]
[1693584152072,0.17230956,213.57,213.07,0.86201645]
[1693584152272,0.17230956,213.56,213.07,0.86201645]
[1693584152472,0.17230956,213.58,213.07,0.86201645]
[1693584152672,0.17230956,213.57,213.07,0.86201645]
[1693584152873,0.17230956,213.56,213.07,0.86201645]
[1693584153066,0.17230956,213.58,213.07,0.93890905]
[1693584153271,0.17230956,213.57,213.08,0.86201645]
[1693584153572,0.17230956,213.56,213.08,0.86201645]
[1693584153873,0.17230956,213.55,213.08,0.86201645]
[1693584154172,0.17230956,213.54,213.09,0.86201645]
[1693584154373,0.17230956,213.53,213.06,0.0768926]
[1693584154571,0.17230956,213.52,213.07,0.86203031]
[1693584154766,0.17230956,213.58,213.07,0.86203031]
[1693584154971,5.1230289,213.59,213.07,0.86203031]
[1693584154972,0.17230956,213.57,213.07,0.86203031]
[1693584155167,5.1230289,213.57,213.08,0.86203031]
[1693584155473,0.17230956,213.56,213.05,0.0768926]
[1693584155675,0.17230956,213.56,213.06,0.8620449]
[1693584157574,0.17230956,213.56,213.0,0.0768926]
[1693584157875,0.17230956,213.56,213.01,0.86230603]
[1693584158174,7.1722405,213.54,213.01,0.86230603]
[1693584158375,5.1230289,213.51,213.0,0.86230603]
[1693584158675,0.17230956,213.5,213.01,0.86230603]
[1693584158871,0.17230956,213.5,213.0,0.86230603]
[1693584159076,0.17230956,213.5,213.01,0.86230603]
[1693584159376,0.17230956,213.5,213.02,0.86230603]
[1693584159675,0.17230956,213.5,213.03,0.86230603]
[1693584159870,0.17230956,213.5,213.0,0.86230603]
[1693584160078,0.17230956,213.5,213.01,0.86231112]
[1693584160776,0.17230956,213.5,213.0,0.86231112]
[1693584160977,0.17230956,213.5,213.01,0.86231112]
[1693584161276,0.17230956,213.5,213.02,0.86231112]
[1693584161576,0.17230956,213.5,213.03,0.86231112]
[1693584161876,0.17230956,213.5,212.99,0.0768926]
[1693584162077,0.17230956,213.5,213.0,0.86230972]
[1693584163080,0.17230956,213.5,213.0,0.93920232]
[1693584163279,0.17230956,213.5,213.01,0.86230972]
[1693584163481,0.17230956,213.51,213.01,0.86230972]
[1693584163879,5.29533846,213.51,213.01,0.86230972]
[1693584164179,0.17230956,213.5,213.01,0.86230972]
[1693584164378,0.17230956,213.49,213.01,0.86230972]
[1693584164578,0.17230956,213.51,213.01,0.86230972]
[1693584164780,0.17230956,213.5,213.01,0.86230972]
[1693584164982,0.17230956,213.49,213.01,0.86230972]
[1693584165181,0.17230956,213.51,213.01,0.86230972]
[1693584165485,0.17230956,213.5,213.01,0.93920232]
[1693584165780,0.17230956,213.49,213.02,0.86230972]
[1693584166101,0.17230956,213.48,213.02,0.86230972]
[1693584166384,0.17230956,213.47,213.02,0.86230972]
[1693584166585,0.17230956,213.46,213.02,0.86230972]
[1693584166785,0.17230956,213.52,213.02,0.86230972]
[1693584167085,0.17230956,213.51,213.02,0.86230972]
[1693584167385,0.17230956,213.5,213.02,0.86230972]
[1693584167685,0.17230956,213.49,213.02,0.86230972]
[1693584167987,0.17230956,213.48,213.02,0.86230972]
[1693584168185,0.17230956,213.52,213.02,0.86230972]
[1693584168386,0.17230956,213.51,213.02,0.86230972]
[1693584168589,0.17230956,213.52,213.02,0.86230972]
[1693584168781,0.17230956,213.51,213.02,0.86230972]
[1693584168982,0.17230956,213.5,213.02,0.86230972]
[1693584169288,0.17230956,213.49,213.02,0.86230972]
[1693584169488,0.17230956,213.52,213.02,0.86230972]
[1693584169691,0.17230956,213.51,213.01,0.86230972]
[1693584169990,0.17230956,213.5,213.02,0.86230972]
[1693584170190,0.17230956,213.52,212.99,0.0768926]
[1693584170391,0.17230956,213.52,213.0,0.86233726]
[1693584170794,5.1230289,213.51,213.0,0.86233726]
[1693584171094,0.17230956,213.5,212.93,0.0768926]
[1693584171289,10.41836656,213.5,212.94,0.86260937]
[1693584171494,0.17230956,213.49,212.94,0.86260937]
[1693584171893,0.17230956,213.49,212.93,0.86260937]
[1693584172094,5.1230289,213.47,212.94,0.86260937]
[1693584172286,0.17230956,213.46,212.95,0.86260937]
[1693584172492,0.17230956,213.46,212.96,0.86260937]
[1693584172693,0.17230956,213.46,212.92,0.86260937]
[1693584172993,0.17230956,213.46,212.93,0.86264162]
[1693584173189,0.17230956,213.46,212.94,0.86264162]
[1693584173392,0.17230956,213.46,212.91,0.0768926]
[1693584173393,0.17230956,213.46,212.95,0.86264162]
[1693584173593,0.17230956,213.46,212.92,0.86264162]
[1693584173791,0.17230956,213.46,212.93,0.86264162]
[1693584173995,0.17230956,213.47,212.94,0.86264162]
[1693584174196,0.17230956,213.46,212.95,0.86264162]
[1693584174392,0.17230956,213.45,212.96,0.86264162]
[1693584174593,0.17230956,213.48,212.91,0.86264162]
[1693584174791,0.17230956,213.47,212.92,0.86262546]
[1693584174993,0.17230956,213.48,212.91,0.86262546]
[1693584175198,0.17230956,213.47,212.92,0.86262546]
[1693584175391,0.17230956,213.46,212.91,0.86262546]
[1693584175596,0.17230956,213.5,212.92,0.86262546]
[1693584175794,0.17230956,213.49,212.93,0.86262546]
[1693584175991,0.17230956,213.48,212.94,0.86262546]
[1693584176192,0.17230956,213.47,212.95,0.86262546]
[1693584176396,0.17230956,213.51,212.9,0.86262546]
[1693584176597,0.17230956,213.5,212.91,0.86262546]
[1693584176796,0.17230956,213.52,212.9,0.86262546]
[1693584176997,0.17230956,213.51,212.91,0.86262546]
[1693584177298,0.17230956,213.5,212.92,0.86262546]
[1693584177500,0.17230956,213.49,212.93,0.86262546]
[1693584177797,0.17230956,213.48,212.94,0.86262546]
[1693584177997,0.17230956,213.52,212.9,0.86262546]
[1693584178199,0.17230956,213.51,212.91,0.86262546]
[1693584178392,5.1230289,213.53,212.89,0.0768926]
[1693584178393,0.17230956,213.5,212.92,0.86262546]
[1693584178597,0.17230956,213.49,212.93,0.86262546]
[1693584178798,0.17230956,213.52,212.89,0.86262546]
[1693584178994,0.17230956,213.51,212.9,0.86262546]
[1693584179200,0.17230956,213.5,212.91,0.86262546]
[1693584179401,0.17230956,213.54,212.89,0.86262546]
[1693584179596,0.17230956,213.53,212.9,0.86262546]
[1693584179797,0.17230956,213.54,212.89,0.86262546]
[1693584180001,0.17230956,213.53,212.9,0.86262546]
[1693584180200,0.17230956,213.52,212.91,0.86262546]
[1693584180503,0.17230956,213.51,212.92,0.86262546]
[1693584180703,0.17230956,213.54,212.89,0.86262546]
[1693584180907,0.17230956,213.53,212.9,0.86262546]
[1693584181205,0.17230956,213.52,212.91,0.86262546]
[1693584181404,0.17230956,213.51,212.92,0.86262546]
[1693584181604,0.17230956,213.5,212.93,0.86262546]
[1693584181805,0.17230956,213.54,212.89,0.86262546]
[1693584181999,5.1230289,213.55,212.9,0.86262546]
[1693584182000,0.17230956,213.53,212.9,0.86262546]
[1693584182197,0.17230956,213.52,212.91,0.86262546]
[1693584182403,0.17230956,213.51,212.92,0.86262546]
[1693584182604,0.17230956,213.5,212.93,0.86262546]
[1693584182805,0.17230956,213.54,212.89,0.86262546]
[1693584183000,0.17230956,213.53,212.9,0.86262546]
[1693584183203,0.17230956,213.52,212.91,0.86262546]
[1693584183403,0.17230956,213.55,212.89,0.86262546]
[1693584183604,0.17230956,213.54,212.9,0.86262546]
[1693584183806,0.17230956,213.53,212.89,0.86262546]
[1693584184006,0.17230956,213.52,212.9,0.86262546]
[1693584184200,0.17230956,213.51,212.91,0.86262546]
[1693584184405,0.17230956,213.5,212.92,0.86262546]
[1693584184608,5.29533846,213.55,212.89,0.86262546]
[1693584184908,0.17230956,213.54,212.9,0.86262546]
[1693584188506,0.17230956,213.54,212.9,0.93951806]
[1693584188706,0.17230956,213.54,212.91,0.86262546]
[1693584189307,5.1230289,213.53,212.91,0.86262546]
[1693584189509,0.17230956,213.52,212.91,0.86262546]
[1693584191008,0.17230956,213.52,212.91,0.93951806]
[1693584191210,0.17230956,213.52,212.92,0.86262546]
[1693584192005,5.29533846,213.52,212.92,0.86262546]
[1693584192208,5.29533846,213.51,212.92,0.93951806]
[1693584192510,0.17230956,213.5,212.93,0.86262546]
[1693584195913,0.17230956,213.5,212.93,0.93951806]
[1693584196115,0.17230956,213.5,212.94,0.86262546]
[1693584196511,0.17230956,213.5,212.95,0.86262546]
[1693584196711,0.17230956,213.5,212.94,0.86262546]
[1693584197012,0.17230956,213.5,212.95,0.86267254]
[1693584197216,0.17230956,213.5,212.93,0.0768926]
[1693584197410,0.17230956,213.5,212.94,0.86267229]
[1693584199209,5.29533846,213.5,212.94,0.86267229]
[1693584199413,0.17230956,213.49,212.94,0.86267229]
[1693584200613,5.29533846,213.49,212.94,0.86267229]
[1693584200810,0.17230956,213.48,212.94,0.86267229]
[1693584201010,0.17230956,213.48,212.94,0.93956489]
[1693584201210,0.17230956,213.48,212.94,0.0768926]
[1693584201411,0.17230956,213.48,212.93,0.0768926]
[1693584202115,5.1230289,213.47,212.95,0.0768926]
[1693584202315,0.17230956,213.46,212.94,0.0768926]
[1693584202919,0.17230956,213.46,212.95,0.0768926]
[1693584204117,5.1230289,213.45,212.97,0.0768926]
[1693584204317,0.17230956,213.44,212.97,0.0768926]
[1693584204519,0.17230956,213.45,212.97,0.0768926]
[1693584204721,0.17230956,213.44,212.97,0.0768926]
[1693584205019,5.29533846,213.43,212.97,0.0768926]
[1693584205222,0.17230956,213.42,213.0,0.0768926]
[1693584206121,0.17230956,213.42,212.99,0.0768926]
[1693584206620,0.17230956,213.42,213.0,0.0768926]
[1693584206820,0.17230956,213.41,213.0,0.0768926]
[1693584207016,5.29533846,213.43,212.99,0.0768926]
[1693584207320,0.17230956,213.42,212.99,0.0768926]
[1693584207717,0.17230956,213.42,212.8,3.75549476]
[1693584207918,0.17230956,213.41,212.99,0.07689994]
[1693584208219,0.17230956,213.4,212.99,0.07689994]
[1693584208415,0.17230956,213.39,212.99,0.07689994]
[1693584208622,0.17230956,213.38,212.99,0.07689994]
[1693584208821,0.17230956,213.37,212.99,0.07689994]
[1693584209115,0.17230956,213.36,212.98,0.07689994]
[1693584209320,0.17230956,213.35,212.98,0.07689994]
[1693584209519,0.17230956,213.34,212.99,0.07689994]
[1693584209814,0.17230956,213.33,212.99,0.07689994]
[1693584210122,0.17230956,213.32,212.98,0.07689994]
[1693584210320,0.17230956,213.31,212.98,0.07689994]
[1693584210513,0.17230956,213.42,212.98,0.07689994]
[1693584210717,0.17230956,213.3,212.98,0.07689994]
[1693584210914,0.17230956,213.29,212.98,0.07689994]
[1693584211114,0.17230956,213.28,212.97,0.07689994]
[1693584211320,0.17230956,213.42,212.97,0.07689994]
[1693584211620,0.17230956,213.41,212.97,0.07689994]
[1693584211821,0.17230956,213.4,212.98,0.07689994]
[1693584212020,0.17230956,213.42,212.98,0.07689994]
[1693584212221,5.26258695,213.41,212.97,0.07689994]
[1693584212421,0.17230956,213.4,212.97,0.07689994]
[1693584212619,0.17230956,213.39,212.97,0.07689994]
[1693584212815,0.17230956,213.41,212.97,0.07689994]
[1693584213017,0.17230956,213.4,212.97,0.07689994]
[1693584214223,5.26258695,213.4,212.97,0.07689994]
[1693584214423,0.17230956,213.39,212.96,0.07689994]
[1693584216723,0.17230956,213.39,212.95,0.07689994]
[1693584217124,5.26258695,213.39,212.95,0.07689994]
[1693584217325,0.17230956,213.38,212.95,0.07689994]
[1693584219518,5.26258695,213.38,212.95,0.07689994]
[1693584219718,0.17230956,213.37,212.95,0.07689994]
[1693584220323,0.17230956,213.37,212.94,0.07689994]
[1693584220926,0.17230956,213.37,212.95,0.07689994]
[1693584221923,0.17230956,213.37,212.94,0.07689994]
[1693584222323,0.17230956,213.37,212.95,0.07689994]
[1693584222525,5.26258695,213.37,212.95,0.07689994]
[1693584222827,0.17230956,213.36,212.95,0.07689994]
[1693584223028,0.17230956,213.36,212.94,0.07689994]
[1693584224128,5.26258695,213.36,212.94,0.07689994]
[1693584224429,0.17230956,213.35,212.94,0.07689994]
[1693584226127,0.17230956,213.35,212.93,0.07689994]
[1693584226328,5.26258695,213.35,212.93,0.07689994]
[1693584226529,0.17230956,213.34,212.93,0.07689994]
[1693584227330,5.26258695,213.34,212.92,0.07689994]
[1693584227529,0.17230956,213.33,212.92,0.07689994]
[1693584229130,5.26258695,213.33,212.92,0.07689994]
[1693584229330,0.17230956,213.32,212.85,0.07689994]
[1693584229929,7.12638835,213.3,212.85,0.07689994]
[1693584230128,0.17230956,213.29,212.85,0.07689994]
[1693584230328,0.17230956,213.29,212.83,0.07689994]
[1693584230530,5.26258695,213.29,212.84,0.86307238]
[1693584230727,0.17230956,213.28,212.84,0.86307238]
[1693584232633,0.17230956,213.3,212.83,0.86307238]
[1693584232829,0.17230956,213.29,212.84,0.86305691]
[1693584233029,0.17230956,213.3,212.83,0.86305691]
[1693584233230,0.17230956,213.29,212.84,0.86305691]
[1693584233433,0.17230956,213.28,212.85,0.86305691]
[1693584233734,0.17230956,213.27,212.82,0.07689994]
[1693584233934,0.17230956,213.3,212.83,0.86308813]
[1693584234136,0.17230956,213.29,212.82,0.86308813]
[1693584234337,0.17230956,213.3,212.83,0.86308813]
[1693584234531,0.17230956,213.29,212.82,0.86308813]
[1693584234733,0.17230956,213.3,212.83,0.86308813]
[1693584234931,0.17230956,213.29,212.84,0.86308813]
[1693584235137,0.17230956,213.28,212.8,0.07689994]
[1693584235332,5.09027739,213.31,212.8,0.07689994]
[1693584235333,0.17230956,213.27,212.81,0.86308358]
[1693584235637,0.17230956,213.26,212.81,0.86308358]
[1693584235838,0.17230956,213.3,212.81,0.86308358]
[1693584236037,0.17230956,213.29,212.81,0.86308358]
[1693584236234,0.17230956,213.3,212.81,0.86308358]
[1693584236437,0.17230956,213.29,212.81,0.86308358]
[1693584236637,0.17230956,213.28,212.81,0.86308358]
[1693584236839,0.17230956,213.27,212.81,0.86308358]
[1693584237031,0.17230956,213.32,212.81,0.86308358]
[1693584237233,0.17230956,213.31,212.81,0.86308358]
[1693584237439,0.17230956,213.32,212.81,0.86308358]
[1693584237635,0.17230956,213.31,212.81,0.86308358]
[1693584237834,0.17230956,213.32,212.81,0.86308358]
[1693584238032,0.17230956,213.31,212.81,0.86308358]
[1693584238238,0.17230956,213.3,212.81,0.86308358]
[1693584238438,0.17230956,213.33,212.81,0.86308358]
[1693584238637,0.17230956,213.32,212.81,0.86308358]
[1693584238834,0.17230956,213.31,212.81,0.86308358]
[1693584239040,0.17230956,213.33,212.81,0.86308358]
[1693584239234,0.17230956,213.32,212.81,0.86308358]
[1693584239436,0.17230956,213.31,212.81,0.86308358]
[1693584239742,0.17230956,213.3,212.82,0.86308358]
[1693584239939,0.17230956,213.33,212.81,0.86308358]
[1693584240142,0.17230956,213.32,212.82,0.86308358]
[1693584240437,0.17230956,213.31,212.83,0.86308358]
[1693584240636,0.17230956,213.3,212.84,0.86308358]
[1693584240843,0.17230956,213.34,212.81,0.86308358]
[1693584241039,0.17230956,213.33,212.82,0.86307283]
[1693584241241,0.17230956,213.32,212.83,0.86307283]
[1693584241442,0.17230956,213.34,212.81,0.86307283]
[1693584241639,0.17230956,213.33,212.82,0.86307283]
[1693584241837,0.17230956,213.32,212.83,0.86307283]
[1693584242041,5.09027739,213.35,212.84,0.86307283]
[1693584242042,0.17230956,213.31,212.84,0.86307283]
[1693584242238,0.17230956,213.34,212.81,0.86307283]
[1693584242547,0.17230956,213.33,212.82,0.86306791]
[1693584242843,0.17230956,213.32,212.83,0.86306791]
[1693584243041,7.12638835,213.38,212.81,0.86306791]
[1693584243042,0.17230956,213.31,212.81,0.86306791]
[1693584243235,0.17230956,213.31,212.79,0.07689994]
[1693584243236,0.17230956,213.3,212.82,0.86306791]
[1693584243441,0.17230956,213.29,212.83,0.86306791]
[1693584243641,0.17230956,213.35,212.8,0.86306791]
[1693584243838,0.17230956,213.34,212.81,0.86306791]
[1693584244040,0.17230956,213.33,212.82,0.86306791]
[1693584244236,0.17230956,213.32,212.83,0.86306791]
[1693584244436,0.17230956,213.35,212.8,0.86306791]
[1693584244644,0.17230956,213.34,212.81,0.86306791]
[1693584244941,0.17230956,213.33,212.82,0.86306791]
[1693584245143,5.09027739,213.36,212.83,0.86306791]
[1693584245144,0.17230956,213.35,212.83,0.86306791]
[1693584245443,0.17230956,213.34,212.84,0.86306791]
[1693584245638,0.17230956,213.33,212.79,0.07689994]
[1693584245844,0.17230956,213.32,212.8,0.86307646]
[1693584246044,0.17230956,213.36,212.8,0.86307646]
[1693584246343,0.17230956,213.35,212.8,0.86307646]
[1693584246542,0.17230956,213.36,212.8,0.86307646]
[1693584246742,0.17230956,213.35,212.8,0.86307646]
[1693584246943,0.17230956,213.34,212.8,0.86307646]
[1693584247143,0.17230956,213.36,212.8,0.86307646]
[1693584247340,0.17230956,213.35,212.8,0.86307646]
[1693584247646,0.17230956,213.34,212.8,0.86307646]
[1693584247844,0.17230956,213.33,212.8,0.86307646]
[1693584248043,0.17230956,213.32,212.8,0.86307646]
[1693584248240,0.17230956,213.36,212.8,0.86307646]
[1693584248446,0.17230956,213.35,212.8,0.86307646]
[1693584248744,0.17230956,213.34,212.8,0.86307646]
[1693584248945,0.17230956,213.36,212.8,0.86307646]
[1693584249142,0.17230956,213.35,212.8,0.86307646]
[1693584249343,0.17230956,213.34,212.8,0.86307646]
[1693584249542,0.17230956,213.36,212.8,0.86307646]
[1693584249743,0.17230956,213.35,212.8,0.86307646]
[1693584250045,0.17230956,213.34,212.8,0.86307646]
[1693584250244,0.17230956,213.33,212.8,0.86307646]
[1693584250545,0.17230956,213.32,212.8,0.86307646]
[1693584250746,0.17230956,213.31,212.8,0.86307646]
[1693584250945,0.17230956,213.36,212.8,0.86307646]
[1693584251145,0.17230956,213.35,212.8,0.86307646]
[1693584251348,0.17230956,213.34,212.8,0.86307646]
[1693584251549,0.17230956,213.35,212.8,0.86307646]
[1693584251746,0.17230956,213.34,212.74,0.07689994]
[1693584251946,0.17230956,213.33,212.75,0.86335004]
[1693584252949,0.17230956,213.33,212.77,0.07689994]
[1693584253150,0.17230956,213.35,212.78,0.86335004]
[1693584253449,0.17230956,213.34,212.78,0.86335004]
[1693584253648,0.17230956,213.35,212.78,0.86335004]
[1693584255551,0.17230956,213.35,212.78,0.94024998]
[1693584255753,0.17230956,213.35,212.79,0.86335004]
[1693584256146,0.17230956,213.35,212.79,0.94024998]
[1693584256350,0.17230956,213.35,212.8,0.86335004]
[1693584256545,0.17230956,213.35,212.81,0.86335004]
[1693584256745,0.17230956,213.35,212.82,0.86335004]
[1693584256946,0.17230956,213.35,212.78,0.07689994]
[1693584257146,0.17230956,213.35,212.79,0.86316072]
[1693584257350,0.17230956,213.35,212.79,0.94006066]
[1693584257546,0.17230956,213.35,212.8,0.86316072]
[1693584258253,5.26258695,213.35,212.8,0.86316072]
[1693584258447,0.17230956,213.34,212.8,0.94006066]
[1693584258650,0.17230956,213.34,212.81,0.86316072]
[1693584260452,0.17230956,213.34,212.81,0.94006066]
[1693584260654,0.17230956,213.34,212.82,0.86316072]
[1693584261448,5.26258695,213.34,212.82,0.94006066]
[1693584261750,0.17230956,213.33,212.83,0.86316072]
[1693584262455,0.17230956,213.33,212.83,0.94006066]
[1693584262650,5.09027739,213.32,212.84,0.07689994]
[1693584262856,0.17230956,213.31,212.84,0.07689994]
[1693584263049,0.17230956,213.3,212.84,0.07689994]
[1693584263255,0.17230956,213.29,212.84,0.07689994]
[1693584263557,0.17230956,213.28,212.84,0.07689994]
[1693584263853,0.17230956,213.27,212.84,0.07689994]
[1693584264057,0.17230956,213.26,212.84,0.07689994]
[1693584264252,0.17230956,213.25,212.84,0.07689994]
[1693584264453,0.17230956,213.24,212.86,0.07689994]
[1693584264650,0.17230956,213.23,212.86,0.07689994]
[1693584264855,5.09027739,213.32,212.86,0.07689994]
[1693584264856,0.17230956,213.22,212.86,0.07689994]
[1693584265055,0.17230956,213.21,212.86,0.07689994]
[1693584265255,0.17230956,213.31,212.86,0.07689994]
[1693584265450,0.17230956,213.3,212.87,0.07689994]
[1693584265649,0.17230956,213.31,212.87,0.07689994]
[1693584265856,0.17230956,213.3,212.87,0.07689994]
[1693584266053,0.17230956,213.32,212.87,0.07689994]
[1693584266255,0.17230956,213.31,212.87,0.07689994]
[1693584266556,0.17230956,213.3,212.87,0.07689994]
[1693584266757,0.17230956,213.32,212.87,0.07689994]
[1693584267456,5.26258695,213.32,212.87,0.07689994]
[1693584267649,0.17230956,213.31,212.87,0.07689994]
[1693584269357,0.17230956,213.31,212.81,0.15379988]
[1693584269358,0.17230956,213.31,212.91,0.07689994]
[1693584269556,0.17230956,213.31,212.93,0.07689994]
[1693584269754,0.17230956,213.35,212.94,0.07689994]
[1693584269957,0.17230956,213.35,212.95,0.07689994]
[1693584270258,0.17230956,213.3,212.95,0.07689994]
[1693584270458,0.17230956,213.34,212.93,0.07689994]
[1693584270760,0.17230956,213.33,212.94,0.86275668]
[1693584270954,0.17230956,213.43,212.94,0.86275668]
[1693584271257,0.17230956,213.42,212.94,0.86275668]
[1693584271453,0.17230956,213.41,212.94,0.86275668]
[1693584271662,0.17230956,213.4,212.94,0.86275668]
[1693584271858,0.17230956,213.39,212.94,0.86275668]
[1693584272053,0.17230956,213.38,212.92,0.07689994]
[1693584272258,0.17230956,213.37,212.93,0.86275346]
[1693584272459,0.17230956,213.36,212.93,0.86275346]
[1693584272651,0.17230956,213.43,212.92,0.86275346]
[1693584272959,0.17230956,213.42,212.93,0.86275664]
[1693584273261,0.17230956,213.41,212.94,0.86275664]
[1693584273452,0.17230956,213.45,212.91,0.86275664]
[1693584273656,0.17230956,213.45,212.89,0.07689994]
[1693584273657,0.17230956,213.44,212.92,0.86276483]
[1693584273856,0.17230956,213.43,212.93,0.86276483]
[1693584274158,0.17230956,213.42,212.89,0.07689994]
[1693584274358,0.17230956,213.46,212.9,0.86276789]
[1693584274558,0.17230956,213.45,212.9,0.86276789]
[1693584274760,0.17230956,213.44,212.91,0.86276789]
[1693584275057,0.17230956,213.44,212.74,0.51266626]
[1693584275058,0.17230956,213.43,212.93,0.07689994]
[1693584275259,0.17230956,213.43,212.92,0.86276789]
[1693584275260,0.17230956,213.43,212.95,0.07689994]
[1693584275461,0.17230956,213.42,212.96,0.86276789]
[1693584275658,0.17230956,213.54,212.96,0.93966783]
[1693584275959,0.17230956,213.53,212.97,0.86276789]
[1693584276158,0.17230956,213.52,212.97,0.86276789]
[1693584276356,0.17230956,213.55,212.97,0.86276789]
[1693584276558,0.17230956,213.54,212.97,0.86276789]
[1693584276758,0.17230956,213.53,212.98,0.86276789]
[1693584276953,0.17230956,213.52,212.99,0.86276789]
[1693584277159,0.17230956,213.51,213.0,0.86276789]
[1693584277458,0.17230956,213.5,213.01,0.86276789]
[1693584277658,0.17230956,213.49,213.02,0.86276789]
[1693584277860,0.17230956,213.59,212.95,0.86276789]
[1693584278057,0.17230956,213.58,212.96,0.86247126]
[1693584278360,0.17230956,213.57,212.97,0.86247126]
[1693584278561,0.17230956,213.56,212.98,0.86247126]
[1693584278762,0.17230956,213.56,212.93,0.07689994]
[1693584278763,0.17230956,213.59,212.94,0.86247126]
[1693584278953,0.17230956,213.58,212.95,0.86247126]
[1693584279158,0.17230956,213.57,212.96,0.86247126]
[1693584279359,0.17230956,213.56,212.97,0.86247126]
[1693584279555,0.17230956,213.63,212.92,0.86247126]
[1693584279758,0.17230956,213.62,212.93,0.86247126]
[1693584279960,0.17230956,213.61,212.94,0.86247126]
[1693584280157,0.17230956,213.63,212.92,0.9393712]
[1693584280363,0.17230956,213.62,212.93,0.86247126]
[1693584280562,0.17230956,213.61,212.93,0.86247126]
[1693584280865,0.17230956,213.6,212.94,0.86247126]
[1693584281066,0.17230956,213.59,212.95,0.86247126]
[1693584281264,0.17230956,213.64,212.92,0.86247126]
[1693584281466,0.17230956,213.63,212.93,0.86247126]
[1693584281764,0.17230956,213.62,212.94,0.86247126]
[1693584281968,0.17230956,213.65,212.92,0.86247126]
[1693584282166,0.17230956,213.64,212.93,0.86247126]
[1693584282364,0.17230956,213.65,212.92,0.86247126]
[1693584282564,0.17230956,213.64,212.93,0.86247126]
[1693584282860,0.17230956,213.63,212.94,0.86247126]
[1693584283165,0.17230956,213.62,212.95,0.86247126]
[1693584283365,0.17230956,213.62,212.9,0.07689994]
[1693584283366,0.17230956,213.61,212.96,0.86247126]
[1693584283667,0.17230956,213.6,212.97,0.86247126]
[1693584283966,0.17230956,213.59,212.98,0.86247126]
[1693584284164,0.17230956,213.68,212.98,0.86247126]
[1693584284365,5.09027739,213.69,212.91,0.86247126]
[1693584284366,0.17230956,213.58,212.91,0.86247126]
[1693584284664,0.17230956,213.57,212.92,0.86247126]
[1693584284863,0.17230956,213.56,212.93,0.86247126]
[1693584285066,0.17230956,213.68,212.9,0.86247126]
[1693584285363,0.17230956,213.67,212.9,3.7547867]
[1693584285666,0.17230956,213.67,212.89,0.07689994]
[1693584285667,0.17230956,213.66,212.91,0.86247126]
[1693584285867,0.17230956,213.65,212.92,0.86247126]
[1693584286068,0.17230956,213.64,212.93,0.86247126]
[1693584286261,0.17230956,213.68,212.9,0.86247126]
[1693584286461,5.09027739,213.69,212.89,0.07689994]
[1693584286462,0.17230956,213.67,212.89,0.07689994]
[1693584286665,0.17230956,213.68,212.9,0.86247126]
[1693584286873,0.17230956,213.67,212.9,0.86247126]
[1693584287065,0.17230956,213.69,212.9,0.86247126]
[1693584287261,0.17230956,213.68,212.9,0.86247126]
[1693584287464,0.17230956,213.7,212.9,0.86247126]
[1693584287661,0.17230956,213.69,212.9,0.9393712]
[1693584287862,0.17230956,213.69,212.91,0.86247126]
[1693584288063,0.17230956,213.69,212.92,0.86247126]
[1693584288372,0.17230956,213.69,212.93,0.86247126]
[1693584288569,0.17230956,213.69,212.94,0.86247126]
[1693584288769,0.17230956,213.69,212.95,0.86247126]
[1693584288976,0.17230956,213.69,212.9,0.86247126]
[1693584289271,0.17230956,213.69,212.89,0.07689994]
[1693584289570,0.17230956,213.69,212.9,0.86247126]
[1693584290362,5.26258695,213.69,212.9,0.86247126]
[1693584290564,0.17230956,213.68,212.9,0.9393712]
[1693584290769,0.17230956,213.68,212.91,0.86247126]
[1693584291070,0.17230956,213.68,212.92,0.86247126]
[1693584291270,0.17230956,213.68,212.93,0.86247126]
[1693584291476,0.17230956,213.68,212.94,0.86247126]
[1693584291665,0.17230956,213.68,212.9,0.86247126]
[1693584291965,0.17230956,213.68,212.91,0.86247126]
[1693584292170,0.17230956,213.68,212.92,0.86247126]
[1693584292372,0.17230956,213.68,212.93,0.86247126]
[1693584292571,0.17230956,213.68,212.91,0.86247126]
[1693584292772,0.17230956,213.68,212.92,0.86247126]
[1693584293071,5.26258695,213.68,212.93,0.86247126]
[1693584293271,0.17230956,213.67,212.94,0.86247126]